bitfinex-derivatives/quotes_ETHF0:USTF0_20240927
["timestamp","ask_amount","ask_price","bid_price","bid_amount"]
[1727451650312,4.35509772,2692.2,2692.1,0.37132]
[1727451650514,2.9,2692.2,2692.1,0.37132]
[1727451650711,4.35509772,2692.2,2692.1,0.37132]
[1727451652313,2.9,2692.2,2692.1,0.37132]
[1727451652513,1.45509772,2692.3,2692.2,0.37131]
[1727451652720,1.45509772,2692.3,2692.2,1.29959]
[1727451653015,4.66289772,2692.5,2692.4,0.37128]
[1727451653224,1.85849772,2692.6,2692.5,0.37127]
[1727451653514,4.8401303,2692.7,2692.6,0.37125]
[1727451653709,3.98533,2692.8,2692.7,0.37124]
[1727451653913,5.15293129,2692.8,2692.7,0.37124]
[1727451655308,1.45878505,2692.8,2692.7,1.29935]
[1727451655505,1.45878505,2693.1,2692.7,4.64171]
[1727451655714,1.45878505,2693.1,2693.0,0.3712]
[1727451655919,1.45878505,2693.2,2693.1,0.37118]
[1727451656314,3.3063,2693.3,2693.2,0.37117]
[1727451656521,4.7638663,2693.3,2693.2,0.37117]
[1727451656839,1.4575663,2693.4,2693.3,0.37116]
[1727451657121,5.63296287,2693.7,2693.5,0.37113]
[1727451657122,1.4575663,2693.7,2693.5,0.37113]
[1727451657313,4.6653663,2693.7,2693.6,0.37112]
[1727451657511,6.4789,2693.7,2693.5,0.37112]
[1727451657712,7.9364663,2693.7,2693.5,0.37112]
[1727451657914,7.5653663,2693.7,2693.6,0.37112]
[1727451658321,6.4789,2693.7,2693.5,0.37112]
[1727451658913,0.37112,2693.6,2693.4,0.37113]
[1727451659124,2.9,2693.5,2693.4,0.37114]
[1727451659319,2.9,2693.5,2693.0,0.928]
[1727451659320,2.9,2693.5,2693.3,0.37115]
[1727451659516,3.27113,2693.5,2693.3,0.37115]
[1727451659912,2.9,2693.5,2693.3,0.37115]
[1727451660117,3.27113,2693.5,2693.3,0.37115]
[1727451661020,3.27113,2693.5,2693.0,0.7788]
[1727451661021,0.37116,2693.3,2693.0,0.7788]
[1727451661213,2.9,2693.2,2693.1,0.37118]
[1727451662026,2.9,2693.2,2692.7,0.3753]
[1727451662215,2.9,2693.0,2692.7,0.7801]
[1727451662625,2.9,2693.0,2692.9,0.37121]
[1727451667014,2.9,2693.0,2692.7,0.4048]
[1727451667214,2.9,2692.8,2692.5,3.57906]
[1727451667420,2.9,2692.6,2692.5,3.57906]
[1727451667916,1.13722,2692.9,2692.6,0.37125]
[1727451667917,2.9,2692.8,2692.6,0.37125]
[1727451668312,2.9,2692.8,2692.5,3.57906]
[1727451668313,3.7136,2692.7,2692.5,3.57906]
[1727451668522,6.98484,2692.8,2692.5,3.57906]
[1727451668723,0.3835,2692.6,2692.4,0.37127]
[1727451668927,6.6136,2692.8,2692.7,0.37124]
[1727451668928,6.1078,2692.8,2692.7,0.37124]
[1727451669126,3.2078,2692.8,2692.7,0.37124]
[1727451670026,3.2969,2693.0,2692.9,0.37121]
[1727451670326,3.2078,2693.1,2693.0,0.3712]
[1727451670728,6.978,2693.4,2693.3,0.37116]
[1727451670924,2.9,2693.6,2693.5,0.37113]
[1727451671117,6.6128,2693.6,2693.5,0.37113]
[1727451671318,3.679,2693.8,2693.6,0.37112]
[1727451671718,3.2078,2693.7,2693.6,0.37111]
[1727451671924,0.779,2693.8,2693.7,0.3711]
[1727451672320,6.5114,2694.0,2693.3,0.9279]
[1727451672321,3.2078,2694.0,2693.5,2.9]
[1727451672625,0.3979,2694.3,2694.2,0.37103]
[1727451673123,4.1099,2694.3,2694.2,0.37103]
[1727451674123,0.3979,2694.3,2694.2,0.37103]
[1727451674426,3.2078,2694.7,2694.6,0.37097]
[1727451674728,6.69918496,2694.9,2694.1,3.8276]
[1727451674729,2.9,2694.9,2694.7,0.37096]
[1727451674917,0.37095,2694.8,2694.6,0.37097]
[1727451675124,3.27095,2694.9,2694.6,0.37097]
[1727451675429,2.9,2694.9,2694.6,0.37097]
[1727451675732,3.2078,2694.7,2694.5,0.37099]
[1727451676937,6.47877,2694.7,2694.4,0.371]
[1727451677523,6.47877,2694.7,2694.5,0.37099]
[1727451679327,3.2078,2694.7,2694.6,0.37098]
[1727451679635,1.18693,2695.0,2694.8,0.37094]
[1727451679827,1.18693,2695.0,2694.4,3.82752]
[1727451679828,0.816,2695.0,2694.4,3.82752]
[1727451680034,1.18693,2695.0,2694.8,0.37094]
[1727451680232,0.37094,2694.9,2694.7,0.37095]
[1727451680536,0.37094,2694.9,2694.8,0.37095]
[1727451680835,0.37096,2694.8,2694.5,0.7663]
[1727451681223,0.37096,2694.7,2694.6,0.37098]
[1727451681838,3.27096,2694.7,2694.6,0.37098]
[1727451682036,2.9,2694.7,2694.6,0.37098]
[1727451682537,3.57876,2694.8,2694.7,0.37096]
[1727451682836,3.57876,2694.8,2694.6,0.37097]
[1727451683638,0.37096,2694.8,2694.6,0.37097]
[1727451683830,3.2078,2694.7,2694.6,0.37097]
[1727451685638,3.2078,2694.7,2694.6,4.08217]
[1727451686438,0.3709,2695.2,2694.6,4.63865]
[1727451686740,0.3709,2695.2,2695.1,0.3709]
[1727451687430,6.1078,2695.3,2694.6,3.82745]
[1727451687431,7.03502,2695.3,2694.6,3.82745]
[1727451687633,3.2078,2695.0,2694.5,0.7663]
[1727451687833,0.37094,2694.9,2694.8,0.37094]
[1727451688444,0.37094,2694.9,2694.5,0.7663]
[1727451688632,0.37094,2694.9,2694.8,0.37095]
[1727451688831,3.2078,2695.0,2694.7,0.37096]
[1727451689037,0.37095,2694.8,2694.7,0.37096]
[1727451689232,0.75215,2694.9,2694.7,0.37096]
[1727451689433,0.3997,2694.8,2694.7,0.37096]
[1727451690540,0.3812,2694.9,2694.8,0.37095]
[1727451691641,0.75214,2694.9,2694.7,0.37095]
[1727451692038,0.75214,2694.9,2694.8,0.37095]
[1727451692245,0.3812,2694.9,2694.8,0.37095]
[1727451692936,0.75214,2694.9,2694.5,0.7663]
[1727451693145,0.3812,2694.9,2694.8,0.37095]
[1727451693446,0.75214,2694.9,2694.8,0.37095]
[1727451693849,3.2078,2695.0,2694.9,0.37094]
[1727451694048,0.4047,2695.3,2695.2,0.37089]
[1727451694352,0.2,2695.4,2695.3,0.37088]
[1727451695451,0.2,2695.4,2695.3,5.00849]
[1727451695947,0.2,2695.4,2695.3,5.9357]
[1727451696548,0.2,2695.4,2695.3,5.00849]
[1727451697749,3.2078,2696.3,2695.3,11.8504]
[1727451698051,0.086,2696.5,2696.4,0.37073]
[1727451698254,0.4035,2697.1,2696.4,3.82683]
[1727451698443,0.4035,2697.1,2697.0,0.37065]
[1727451698643,0.4035,2697.1,2697.0,1.90965]
[1727451698852,0.086,2697.7,2697.0,9.708]
[1727451699150,0.37057,2697.6,2697.2,3.2078]
[1727451699352,2.9,2698.0,2697.2,3.39008094]
[1727451699550,3.2078,2697.8,2697.4,0.37059]
[1727451699753,3.27052,2698.0,2697.3,1.539]
[1727451699754,2.9,2698.0,2697.3,1.539]
[1727451699944,0.7942,2698.1,2697.5,2.9]
[1727451700144,4.002,2698.1,2697.5,2.9]
[1727451700344,4.002,2698.1,2697.0,0.3821]
[1727451700345,3.2078,2697.8,2697.6,1.539]
[1727451700545,3.2078,2697.8,2697.3,0.3706]
[1727451700950,0.37053,2697.9,2697.4,1.539]
[1727451701145,0.37053,2697.9,2697.0,0.3821]
[1727451701146,0.37052,2698.0,2697.0,0.56451079]
[1727451701451,3.2078,2697.8,2697.3,0.3706]
[1727451701658,3.2078,2697.8,2697.4,1.539]
[1727451702051,3.2078,2697.8,2697.4,1.90959]
[1727451702453,3.2078,2697.8,2697.5,1.536]
[1727451702752,3.57834,2697.8,2697.2,3.57841]
[1727451702957,3.2078,2697.8,2697.6,1.535]
[1727451703758,0.37052,2698.0,2697.6,1.535]
[1727451704054,0.7942,2698.1,2697.6,1.535]
[1727451704452,0.7942,2698.1,2697.8,0.37053]
[1727451705053,0.7942,2698.1,2697.6,1.535]
[1727451705054,0.7942,2698.1,2698.0,0.37051]
[1727451705253,3.2078,2698.4,2698.1,0.37049]
[1727451705652,3.2078,2698.4,2698.0,0.3705]
[1727451705853,0.37049,2698.2,2697.5,3.2078]
[1727451706057,3.5952,2698.1,2697.9,0.37052]
[1727451706257,0.3874,2698.1,2698.0,0.37051]
[1727451706662,4.0938,2698.1,2698.0,0.37051]
[1727451707964,0.3874,2698.1,2698.0,0.37051]
[1727451708161,3.2078,2698.4,2698.1,0.37049]
[1727451708368,3.57826,2698.4,2698.0,0.3705]
[1727451708858,3.2078,2698.4,2698.2,0.37048]
[1727451709056,0.3886,2698.5,2697.9,1.535]
[1727451709259,0.1,2699.4,2698.4,6.7678]
[1727451709572,1.4575663,2700.9,2698.4,6.7678]
[1727451709573,0.01286604,2700.0,2699.9,0.37025]
[1727451709868,0.01286604,2700.0,2699.9,3.2078]
[1727451710053,0.01286604,2700.0,2699.9,3.57805]
[1727451710256,0.01286604,2700.0,2699.9,3.2078]
[1727451710559,0.01286604,2700.0,2699.9,7.28205]
[1727451711658,0.01286604,2700.0,2699.9,6.9118]
[1727451711860,0.01286604,2700.0,2699.9,3.2078]
[1727451712358,0.01286604,2700.0,2699.3,7.70424862]
[1727451712563,0.38310604,2700.0,2699.6,0.37029]
[1727451712758,0.01286604,2700.0,2699.4,12.1165688]
[1727451712961,0.01286604,2700.0,2699.7,7.91153587]
[1727451713264,0.01286604,2700.0,2699.7,0.37027]
[1727451713569,0.38310604,2700.0,2699.6,0.37028]
[1727451714066,0.37026,2699.9,2699.6,8.29276091]
[1727451714267,0.38310604,2700.0,2699.4,7.92247091]
[1727451714473,0.38310604,2700.0,2699.7,7.80712603]
[1727451714764,0.38310604,2700.0,2699.7,0.37028]
[1727451715062,0.37025,2699.9,2699.5,0.37029]
[1727451715451,0.37025,2699.9,2699.3,7.84148925]
[1727451715452,0.37026,2699.8,2699.7,7.84126702]
[1727451715659,0.37026,2699.8,2699.6,7.84126702]
[1727451715660,0.37028,2699.7,2699.6,7.84126702]
[1727451715854,0.37028,2699.7,2699.4,5.8501177]
[1727451716057,1.14387,2699.8,2699.6,7.84126702]
[1727451716460,0.7736,2699.8,2699.7,0.37028]
[1727451716655,0.7736,2699.8,2699.7,7.96225808]
[1727451717162,0.01286604,2700.0,2699.8,0.37025]
[1727451717362,0.01286604,2700.0,2699.8,0.37026]
[1727451717561,0.01286604,2700.0,2699.9,0.37025]
[1727451719559,0.38310604,2700.0,2699.7,7.59197808]
[1727451719764,0.01286604,2700.0,2699.9,0.37025]
[1727451720261,0.01286604,2700.0,2699.9,4.07425]
[1727451720563,0.01286604,2700.0,2699.9,11.39935566]
[1727451720763,0.01286604,2700.0,2699.9,7.28205]
[1727451720963,0.01286604,2700.0,2699.4,3.2078]
[1727451721168,0.01286604,2700.0,2699.8,0.37025]
[1727451721367,0.37026,2699.9,2699.6,7.87765191]
[1727451721569,0.01286604,2700.0,2699.8,0.37026]
[1727451721866,0.01286604,2700.0,2699.9,0.37025]
[1727451723175,0.01286604,2700.0,2699.9,4.07425]
[1727451723665,0.01286604,2700.0,2699.9,0.37025]
[1727451724063,0.01286604,2700.0,2699.9,4.07425]
[1727451725973,0.01286604,2700.0,2699.9,0.37025]
[1727451726169,0.01286604,2700.0,2699.8,3.57805]
[1727451726364,0.01286604,2700.0,2699.9,0.37025]
[1727451726671,0.01286604,2700.0,2699.8,3.57805]
[1727451726869,0.01286604,2700.0,2699.8,3.2078]
[1727451727074,0.01286604,2700.0,2699.9,0.37025]
[1727451728369,0.01286604,2700.0,2699.9,4.07425]
[1727451729162,0.01286604,2700.0,2699.9,10.99988]
[1727451729363,0.01286604,2700.0,2699.9,15.35771266]
[1727451729565,0.01286604,2700.0,2699.9,16.28334266]
[1727451730468,0.01286604,2700.0,2699.9,17.81634266]
[1727451731068,0.01286604,2700.0,2699.9,18.18554266]
[1727451731574,0.01286604,2700.0,2699.9,14.80128266]
[1727451731768,0.01286604,2700.0,2699.9,17.25991266]
[1727451732468,6.04e-06,2700.0,2699.9,24.34554266]
[1727451733478,6.04e-06,2700.0,2699.9,32.00112449]
[1727451733673,0.3701,2701.0,2700.3,0.92549]
[1727451733870,0.3701,2701.0,2700.7,0.37013]
[1727451734066,4.90821,2701.2,2700.6,3.2078]
[1727451734268,0.92522,2701.1,2700.4,0.37018]
[1727451734474,0.37018,2700.4,2700.2,3.578]
[1727451734675,0.37019,2700.3,2700.2,3.2078]
[1727451735175,0.37019,2700.3,2700.2,3.57801]
[1727451735474,0.37019,2700.3,2700.2,3.2078]
[1727451736072,0.3716,2700.4,2700.2,3.2078]
[1727451736267,0.74179,2700.4,2700.3,0.37019]
[1727451736576,0.74179,2700.4,2700.2,3.2078]
[1727451736577,0.37019,2700.3,2700.2,3.2078]
[1727451737075,0.37019,2700.3,2700.2,3.57801]
[1727451737775,0.37019,2700.3,2700.2,3.2078]
[1727451737970,0.3716,2700.4,2700.2,3.578]
[1727451738169,0.37021,2700.2,2700.1,0.37021]
[1727451739069,0.37023,2700.1,2700.0,0.37023]
[1727451739467,0.37023,2700.1,2700.0,0.37024]
[1727451739874,0.37021,2700.2,2700.1,0.37021]
[1727451740175,0.3702,2700.3,2700.2,0.3702]
[1727451740380,0.3702,2700.3,2699.9,3.2078]
[1727451740381,0.37023,2700.1,2700.0,0.37022]
[1727451740683,0.37022,2700.2,2700.1,0.37022]
[1727451740885,0.3702,2700.3,2700.2,0.37021]
[1727451741066,0.3702,2700.3,2700.2,3.57801]
[1727451741471,0.3716,2700.4,2700.2,3.57801]
[1727451741673,0.74179,2700.4,2700.3,0.37019]
[1727451742376,0.4036,2700.6,2700.5,0.37017]
[1727451742578,0.3989,2700.9,2700.3,0.92549]
[1727451742885,0.37017,2700.5,2700.4,0.37017]
[1727451743276,0.37017,2700.5,2700.2,3.2078]
[1727451743277,0.3915,2700.6,2700.2,3.2078]
[1727451743475,1.31692,2700.6,2700.2,3.2078]
[1727451743680,0.37019,2700.4,2700.3,0.37018]
[1727451743872,0.37019,2700.4,2700.3,0.37019]
[1727451744274,0.37018,2700.5,2700.4,0.37018]
[1727451744485,1.3169,2700.6,2700.2,3.2078]
[1727451744679,0.37021,2700.2,2700.1,0.37021]
[1727451744977,0.3989,2700.9,2700.2,0.92553]
[1727451745180,0.37013,2700.8,2700.7,0.37013]
[1727451745378,0.76902,2700.9,2700.7,0.37013]
[1727451745579,0.37013,2700.8,2700.7,0.37013]
[1727451745786,0.37013,2700.8,2700.6,0.37015]
[1727451746274,0.37014,2700.7,2700.6,0.37015]
[1727451746474,0.37017,2700.5,2700.3,0.37018]
[1727451746778,0.37019,2700.4,2700.2,3.578]
[1727451747380,0.37019,2700.3,2700.2,3.578]
[1727451747775,0.37019,2700.4,2700.2,3.578]
[1727451747978,1.32265,2700.5,2700.1,0.37022]
[1727451748182,0.7779,2700.3,2700.1,0.37022]
[1727451748387,0.7779,2700.3,2700.0,3.56]
[1727451748388,0.4077,2700.3,2700.2,0.37021]
[1727451750084,0.77789,2700.3,2700.2,0.37021]
[1727451750280,0.77789,2700.3,2700.1,0.37021]
[1727451750786,3.7032,2700.2,2699.7,3.2078]
[1727451751086,0.3969,2700.1,2699.8,0.37026]
[1727451751280,0.37024,2700.0,2699.8,0.37026]
[1727451751481,0.37026,2699.8,2699.7,3.2078]
[1727451751784,0.4047,2699.9,2699.5,0.32466278]
[1727451752083,0.37028,2699.8,2699.5,0.3703]
[1727451752283,0.37028,2699.7,2699.6,7.96152935]
[1727451752477,0.37027,2699.8,2699.6,8.33181935]
[1727451753187,0.77496,2699.9,2699.7,0.37028]
[1727451753387,0.37028,2699.7,2699.6,7.96152935]
[1727451753594,0.4047,2699.9,2699.6,7.96152935]
[1727451753788,0.37028,2699.7,2699.6,7.96152935]
[1727451754799,1.33034,2699.9,2699.6,8.33181935]
[1727451754996,0.37027,2699.8,2699.6,7.96152935]
[1727451755294,2.2325263,2699.9,2699.7,0.37028]
[1727451755495,1.8622663,2699.9,2699.6,11.89181935]
[1727451755698,0.37028,2699.7,2699.6,11.52152935]
[1727451755898,0.37028,2699.7,2699.6,7.96152935]
[1727451756100,1.29598,2699.7,2699.6,7.96152935]
[1727451756502,1.67948,2699.7,2699.6,7.96152935]
[1727451756899,0.75378,2699.7,2699.6,7.96152935]
[1727451757806,5.38348,2699.7,2699.6,7.96152935]
[1727451757995,6.8410463,2699.7,2699.6,7.96152935]
[1727451758199,5.9153463,2699.7,2699.6,7.96152935]
[1727451758401,13.7667463,2699.7,2699.6,7.96152935]
[1727451758707,13.7667463,2699.7,2699.1,3.2078]
[1727451758708,0.37035,2699.2,2699.1,3.2078]
[1727451758895,0.37035,2699.2,2698.5,7.06141113]
[1727451758896,0.3704,2698.8,2698.5,7.06141113]
[1727451759092,0.3704,2698.8,2698.6,0.37042]
[1727451759296,3.7056,2698.7,2698.3,3.85361113]
[1727451759606,0.37045,2698.5,2698.3,2.89]
[1727451759803,0.7665,2698.4,2698.1,6.0978]
[1727451760012,0.37048,2698.2,2698.1,1.9806]
[1727451760302,0.37056,2697.7,2697.4,3.26059]
[1727451760695,0.37057,2697.6,2697.4,2.89]
[1727451760897,0.37058,2697.5,2697.4,2.89]
[1727451761300,0.3706,2697.4,2697.1,2.89]
[1727451761701,0.37061,2697.3,2697.1,2.89]
[1727451761898,0.37059,2697.5,2697.1,2.89]
[1727451762102,0.38,2697.7,2697.3,3.2606]
[1727451762310,0.38,2697.7,2697.3,3.9306]
[1727451762604,0.37057,2697.6,2697.3,3.9306]
[1727451763005,0.37061,2697.3,2697.2,3.2078]
[1727451763401,0.37061,2697.3,2697.0,3.93064]
[1727451763603,3.2078,2698.0,2697.0,3.56]
[1727451763810,6.50316287,2698.6,2697.8,3.56]
[1727451763811,3.5898,2698.5,2697.8,3.56]
[1727451764003,0.37047,2698.3,2698.2,3.56]
[1727451764203,0.37049,2698.2,2697.9,3.93052]
[1727451764410,3.2078,2698.5,2697.9,3.56]
[1727451764600,3.2078,2698.9,2698.3,3.56]
[1727451764799,4.46,2699.2,2698.3,3.56]
[1727451764800,7.6678,2699.2,2698.3,3.56]
[1727451765008,3.2078,2698.9,2698.3,6.7678]
[1727451765212,3.2078,2698.9,2698.7,0.37041]
[1727451765699,3.7056,2698.8,2698.3,3.9335]
[1727451765899,4.1338,2698.9,2698.3,3.9335]
[1727451766106,3.5782,2698.9,2698.6,0.37042]
[1727451766508,3.2078,2698.9,2698.3,3.9335]
[1727451767107,0.37037,2699.1,2698.8,0.3704]
[1727451767108,0.37036,2699.1,2698.8,0.3704]
[1727451767506,0.37037,2699.0,2698.8,0.3704]
[1727451767710,0.37036,2699.1,2698.8,0.3704]
[1727451768107,0.37037,2699.0,2698.8,0.3704]
[1727451768711,0.37037,2699.1,2698.8,0.3704]
[1727451769013,4.078,2699.5,2699.3,0.37032]
[1727451769211,3.2078,2699.6,2699.0,3.56]
[1727451769407,3.2078,2699.6,2699.4,0.37031]
[1727451769820,3.704,2699.5,2699.3,0.37032]
[1727451770017,3.2078,2699.6,2699.4,0.37032]
[1727451770319,3.2078,2699.6,2699.4,0.37031]
[1727451770620,3.704,2699.5,2699.4,0.37031]
[1727451770924,3.2078,2699.6,2699.5,0.3703]
[1727451772006,3.2078,2699.6,2699.3,3.56]
[1727451772207,3.5781,2699.6,2699.3,3.93032]
[1727451772416,0.37031,2699.5,2699.3,3.56]
[1727451772716,0.37031,2699.5,2699.3,3.93032]
[1727451773017,0.37031,2699.5,2699.3,3.56]
[1727451773218,3.5781,2699.6,2699.3,3.56]
[1727451773519,3.2078,2699.6,2699.3,3.56]
[1727451773715,3.2078,2699.6,2699.4,0.37032]
[1727451774020,3.2078,2699.6,2699.5,0.3703]
[1727451774321,3.57805,2699.9,2699.6,0.37029]
[1727451774717,7.28205,2699.9,2699.6,0.37029]
[1727451774916,7.28205,2699.9,2699.7,0.37027]
[1727451774917,6.9118,2699.9,2699.7,0.37027]
[1727451775218,3.2078,2699.9,2699.6,0.37028]
[1727451775515,6.9118,2699.9,2699.6,0.37029]
[1727451775920,7.28206,2699.9,2699.6,0.37029]
[1727451776218,0.37028,2699.7,2699.3,3.56]
[1727451776516,3.2078,2699.9,2699.4,0.37031]
[1727451776517,0.37029,2699.6,2699.4,0.37031]
[1727451777027,0.37028,2699.7,2699.5,0.3703]
[1727451777418,4.07428,2699.7,2699.5,0.3703]
[1727451777624,3.704,2699.6,2699.4,0.37031]
[1727451777820,0.37032,2699.4,2699.3,3.56]
[1727451778322,4.13345,2699.9,2699.5,0.3703]
[1727451778323,3.2078,2699.9,2699.5,0.3703]
[1727451778530,0.37027,2699.8,2699.5,0.3703]
[1727451778711,4.07427,2699.8,2699.5,0.3703]
[1727451779020,4.07428,2699.7,2699.4,0.37031]
[1727451779220,0.37027,2699.8,2699.5,0.3703]
[1727451779425,3.2078,2699.7,2699.5,0.3703]
[1727451779623,3.2078,2699.7,2699.6,0.37029]
[1727451779826,3.2078,2699.8,2699.6,0.37029]
[1727451780125,0.3703,2699.6,2699.3,3.93033]
[1727451780618,0.37031,2699.5,2699.3,3.93033]
[1727451780820,4.0751,2699.6,2699.3,3.93033]
[1727451781122,0.3703,2699.6,2699.3,3.93033]
[1727451782623,0.37028,2699.7,2699.4,0.37031]
[1727451782929,0.37028,2699.7,2699.3,3.56]
[1727451783126,0.37028,2699.7,2699.4,0.37031]
[1727451783626,3.704,2699.6,2699.4,0.37031]
[1727451784126,3.704,2699.5,2699.4,0.37031]
[1727451784322,3.704,2699.6,2699.4,3.26031]
[1727451784529,3.704,2699.5,2699.4,3.26031]
[1727451784715,0.37029,2699.7,2699.4,3.26031]
[1727451784716,3.704,2699.6,2699.4,3.26031]
[1727451785232,0.37029,2699.7,2699.4,3.26031]
[1727451785233,3.704,2699.5,2699.4,3.26031]
[1727451785533,4.07429,2699.6,2699.4,3.26031]
[1727451785739,0.37029,2699.6,2699.4,3.26031]
[1727451785925,3.704,2699.5,2699.4,2.89]
[1727451786223,3.704,2699.5,2699.0,3.5888]
[1727451786429,3.2078,2699.8,2699.3,2.89]
[1727451786633,3.57807,2699.8,2699.5,2.89]
[1727451786828,0.37028,2699.7,2699.5,3.26029]
[1727451787026,4.07428,2699.7,2699.5,3.26029]
[1727451787228,3.704,2699.6,2699.5,3.26029]
[1727451787627,9.704,2699.6,2699.5,3.26029]
[1727451788237,3.704,2699.6,2699.5,3.26029]
[1727451788930,3.2078,2699.8,2699.7,0.37028]
[1727451789134,3.2078,2699.9,2699.7,2.89]
[1727451789337,3.2078,2699.9,2699.8,3.26026]
[1727451789729,3.704,2699.9,2699.8,3.26026]
[1727451789936,0.4039,2700.1,2700.0,0.37024]
[1727451790127,3.57801,2700.2,2700.0,3.26024]
[1727451790431,4.07342,2700.1,2700.0,3.26024]
[1727451790626,0.37021,2700.2,2700.0,3.26024]
[1727451790829,6.911,2700.3,2700.1,3.26022]
[1727451791133,4.07341,2700.2,2700.1,2.89]
[1727451791326,4.07341,2700.2,2700.1,3.26022]
[1727451791327,3.7032,2700.2,2700.1,3.26022]
[1727451792733,4.07341,2700.2,2700.1,2.89]
[1727451793630,7.28121,2700.2,2700.1,2.89]
[1727451793831,0.37022,2700.1,2700.0,2.89]
[1727451794220,4.07422,2700.1,2700.0,2.89]
[1727451794526,3.704,2700.1,2700.0,2.89]
[1727451794928,4.07422,2700.1,2700.0,2.89]
[1727451796038,4.07422,2700.1,2699.8,0.3689]
[1727451796039,0.37025,2699.9,2699.8,3.2589]
[1727451796236,3.57805,2699.9,2699.8,3.2589]
[1727451799430,3.57805,2699.9,2699.8,2.89]
[1727451799629,7.28205,2699.9,2699.8,2.89]
[1727451800941,0.37029,2699.6,2699.5,2.89]
[1727451801126,4.13343,2699.9,2699.5,3.2603]
[1727451801127,4.50883,2699.9,2699.5,3.2603]
[1727451801327,4.50883,2699.9,2699.4,0.3863]
[1727451801527,4.50883,2699.9,2699.5,2.89]
[1727451801528,0.37029,2699.6,2699.5,2.89]
[1727451801735,0.37029,2699.6,2699.5,3.2603]
[1727451801927,3.704,2699.6,2699.5,3.2603]
[1727451802332,4.07429,2699.6,2699.5,2.89]
[1727451803437,5.00002,2699.6,2699.5,2.89]
[1727451803631,0.37032,2699.4,2699.3,3.2078]
[1727451804136,4.07512,2699.4,2699.3,3.2078]
[1727451804640,5.00092,2699.4,2699.3,3.2078]
[1727451807450,4.07512,2699.4,2699.3,3.2078]
[1727451809632,4.07512,2699.4,2699.3,3.57813]
[1727451809935,4.07512,2699.4,2699.3,3.2078]
[1727451810335,5.00092,2699.4,2699.3,3.2078]
[1727451810546,0.92597,2698.9,2698.8,3.275]
[1727451810735,0.37044,2698.5,2698.4,0.37045]
[1727451810932,6.45093635,2698.8,2698.2,3.2754]
[1727451811136,1.45147982,2698.6,2698.3,0.92618]
[1727451811338,1.45147982,2698.6,2698.2,0.3854]
[1727451811339,0.37047,2698.3,2698.2,0.3854]
[1727451811653,0.37046,2698.4,2698.2,0.3854]
[1727451811843,1.82403356,2698.3,2698.2,0.3854]
[1727451812037,5.15996725,2698.3,2698.2,0.3854]
[1727451812443,6.61339383,2698.3,2698.2,0.3854]
[1727451812745,6.61339383,2698.3,2698.0,0.3705]
[1727451812746,0.3705,2698.1,2697.8,0.7409]
[1727451812940,0.37049,2698.2,2697.8,1.11142]
[1727451813140,0.37051,2698.0,2697.8,0.7409]
[1727451813649,1.45301316,2698.3,2697.5,3.2988]
[1727451813650,4.13402,2698.2,2697.5,3.2988]
[1727451813947,0.37053,2697.9,2697.6,0.37056]
[1727451814145,0.37053,2697.9,2697.5,3.66937]
[1727451814343,0.92625,2698.1,2697.5,3.2988]
[1727451814540,0.92628,2698.0,2697.5,3.2988]
[1727451814845,0.4025,2698.0,2697.5,3.66938]
[1727451815040,0.4025,2698.0,2697.5,3.2988]
[1727451815450,0.37056,2697.7,2697.5,0.4088]
[1727451815756,0.37057,2697.6,2697.5,0.4088]
[1727451816258,0.37057,2697.6,2697.3,2.89]
[1727451816444,0.37057,2697.6,2697.3,3.2589]
[1727451816641,0.37057,2697.6,2697.3,3.62951]
[1727451816846,0.37058,2697.5,2697.3,3.2589]
[1727451817842,0.37059,2697.4,2697.3,0.3689]
[1727451818251,0.37059,2697.5,2697.3,0.3689]
[1727451818943,3.2078,2697.6,2697.3,0.3689]
[1727451819142,3.57837,2697.6,2697.4,0.37059]
[1727451819343,0.37058,2697.5,2697.3,0.7395]
[1727451820053,3.2078,2697.6,2697.3,0.7395]
[1727451820344,0.37058,2697.6,2697.4,0.37059]
[1727451820551,0.92639,2697.7,2697.3,0.3689]
[1727451820738,0.37058,2697.5,2697.3,0.7395]
[1727451821136,0.37059,2697.5,2697.3,0.7395]
[1727451821550,0.37059,2697.5,2697.4,0.37059]
[1727451821943,0.37059,2697.5,2697.3,0.3689]
[1727451822145,0.37059,2697.5,2697.4,0.37059]
[1727451822446,3.2078,2697.9,2697.4,6.5972]
[1727451822751,3.57831,2698.0,2697.9,0.37052]
[1727451823055,3.7064,2698.0,2697.8,0.37053]
[1727451823242,0.37052,2697.9,2697.8,0.37053]
[1727451823449,0.37056,2697.7,2697.6,0.37056]
[1727451823843,7.02407,2698.1,2697.3,3.2589]
[1727451824151,0.37054,2697.8,2697.7,0.37054]
[1727451825043,0.92628,2698.0,2697.3,4.18541]
[1727451825344,0.37057,2697.6,2697.5,0.37057]
[1727451825745,0.37058,2697.5,2697.4,0.37058]
[1727451826245,0.37057,2697.6,2697.5,0.37058]
[1727451826656,0.37058,2697.5,2697.4,0.37058]
[1727451827158,0.37059,2697.4,2697.3,0.7395]
[1727451827348,0.9264,2697.7,2697.3,0.7395]
[1727451827349,0.37059,2697.5,2697.4,0.37059]
[1727451827855,0.37059,2697.4,2697.3,0.7395]
[1727451828152,0.9264,2697.7,2697.3,0.7395]
[1727451828153,0.37058,2697.5,2697.3,0.7395]
[1727451828351,0.37058,2697.5,2697.3,0.3689]